bitfinex-derivatives/quotes_ETHF0:USTF0_20251119
["timestamp","ask_amount","ask_price","bid_price","bid_amount"]
[1763575528456,3.2078,2914.9,2914.0,5.05071286]
[1763575528457,3.2078,2914.3,2913.9,1.22563128]
[1763575528761,3.2078,2914.0,2913.8,1.22563128]
[1763575528970,3.2078,2914.0,2913.4,1.22563128]
[1763575529175,3.21294809,2914.0,2913.4,4.44180608]
[1763575529463,0.00514809,2914.0,2913.5,1.22563128]
[1763575529666,0.00514809,2914.0,2913.4,1.23400608]
[1763575529860,3.2078,2913.8,2913.4,0.0083748]
[1763575530260,0.00514809,2914.0,2913.4,3.2161748]
[1763575530770,3.2078,2913.5,2913.4,0.0083748]
[1763575530964,3.2078,2913.5,2912.6,5.64457675]
[1763575530965,3.21160255,2913.5,2912.6,1.22563128]
[1763575531155,3.21160255,2913.5,2912.3,3.2078]
[1763575531156,3.2078,2913.2,2912.5,1.22563128]
[1763575531363,3.2078,2913.2,2912.7,3.2078]
[1763575531563,3.76435,2913.2,2912.3,3.2078]
[1763575531766,3.2078,2912.9,2912.3,3.2078]
[1763575532069,3.76435,2913.2,2912.3,3.21637426]
[1763575532460,3.76435,2913.2,2912.3,4.44200554]
[1763575532665,0.55655,2913.2,2912.6,3.2078]
[1763575532962,0.00380255,2913.5,2912.9,3.2078]
[1763575533163,0.00380255,2913.5,2913.0,1.4416]
[1763575533666,0.00380255,2913.5,2912.9,4.43343128]
[1763575534065,0.00380255,2913.5,2912.7,1.22563128]
[1763575534066,3.2078,2913.3,2912.7,1.22563128]
[1763575534472,3.2078,2913.3,2912.6,6.6478]
[1763575534674,3.2078,2913.3,2912.6,3.2078]
[1763575534873,0.56029255,2913.5,2912.6,3.2078]
[1763575535071,0.00380255,2913.5,2912.6,4.43343128]
[1763575535267,0.00380255,2913.5,2912.9,3.2078]
[1763575535671,0.00380255,2913.5,2913.0,1.22563128]
[1763575536068,0.00380255,2913.5,2913.2,3.2078]
[1763575536470,3.2078,2913.9,2913.3,1.4416]
[1763575536666,3.2078,2913.9,2913.3,2.66723128]
[1763575536872,3.76431,2913.4,2913.1,1.22563128]
[1763575537070,3.76431,2913.4,2912.7,1.22563128]
[1763575537271,0.55651,2913.4,2912.9,3.2078]
[1763575537475,0.0028236,2913.4,2912.9,4.43343128]
[1763575537874,0.0028236,2913.4,2912.8,1.84291286]
[1763575537875,3.2078,2913.3,2912.8,1.22563128]
[1763575538267,3.2078,2913.3,2912.8,4.43343128]
[1763575538479,0.0028236,2913.4,2912.9,1.22563128]
[1763575538673,0.0028236,2913.4,2913.0,1.22563128]
[1763575538873,0.00514809,2914.0,2913.3,1.4416]
[1763575539072,0.00514809,2914.0,2913.4,3.2078]
[1763575539370,0.00514809,2914.0,2913.7,3.2078]
[1763575539571,3.21294809,2914.0,2913.6,1.22563128]
[1763575539770,3.21294809,2914.0,2913.0,1.22563128]
[1763575539771,3.2078,2913.7,2913.0,1.22563128]
[1763575539972,3.21219514,2913.7,2912.9,3.2078]
[1763575540368,3.2078,2913.0,2912.8,1.22563128]
[1763575540583,0.55662,2912.8,2912.3,0.00857426]
[1763575540887,1.4298,2913.3,2911.7,1.0888682]
[1763575540888,1.4298,2912.4,2911.7,1.0888682]
[1763575541072,3.2078,2911.8,2911.1,1.84291286]
[1763575541381,3.2078,2911.5,2910.9,3.2078]
[1763575541695,3.2078,2911.2,2910.5,17.42988286]
[1763575541977,0.00514809,2911.1,2910.6,0.00514809]
[1763575542179,0.00514809,2911.1,2910.6,1.44674809]
[1763575542379,0.00514809,2911.1,2910.9,5.05071286]
[1763575542583,0.00378917,2911.2,2910.9,3.2078]
[1763575544079,3.05090726,2911.5,2910.8,5.28291286]
[1763575544274,3.05090726,2911.5,2910.8,3.439]
[1763575544473,0.5569,2911.4,2910.6,5.05586095]
[1763575544680,3.2078,2911.0,2910.6,0.00514809]
[1763575544889,3.2078,2911.3,2910.6,0.00514809]
[1763575545177,0.00514809,2911.2,2910.6,0.00514809]
[1763575545373,3.2078,2911.0,2910.6,0.00514809]
[1763575545889,0.00514809,2911.2,2910.7,3.2078]
[1763575546089,3.2078,2911.1,2910.6,0.00514809]
[1763575546285,0.00514809,2911.2,2910.7,3.2078]
[1763575546585,0.00514809,2911.2,2911.1,3.2078]
[1763575547892,0.00514809,2911.2,2911.1,6.6458]
[1763575548080,4.809e-05,2911.2,2911.1,6.6458]
[1763575548280,4.809e-05,2911.2,2911.1,8.48871286]
[1763575548486,4.809e-05,2911.2,2911.1,3.2078]
[1763575549089,3.2078,2912.1,2911.1,9.76474]
[1763575549388,3.2078,2912.1,2911.4,1.83576183]
[1763575549598,3.76448,2912.5,2911.9,3.2078]
[1763575550089,3.21219367,2912.5,2911.9,3.21294809]
[1763575550681,1.4298,2912.4,2911.9,3.21294809]
[1763575550891,3.2078,2912.0,2911.9,0.00514809]
[1763575551290,0.55677,2912.1,2911.9,0.00514809]
[1763575551484,3.2078,2912.3,2911.9,0.00514809]
[1763575553185,0.56108367,2912.5,2911.9,0.00514809]
[1763575553383,0.00439367,2912.5,2912.2,3.2078]
[1763575553684,0.00439367,2912.5,2912.0,3.435]
[1763575554292,0.00439367,2912.5,2912.0,7.193]
[1763575554492,0.00439367,2912.5,2912.0,3.758]
[1763575554682,0.00439367,2912.5,2911.9,5.04870992]
[1763575554683,0.00439367,2912.5,2911.9,3.21294809]
[1763575554892,0.00439367,2912.5,2911.9,6.64694809]
[1763575555085,3.2078,2912.4,2911.9,3.43914809]
[1763575555283,3.21219367,2912.5,2911.9,0.00514809]
[1763575555694,3.2078,2912.3,2911.9,0.00514809]
[1763575556194,0.56108367,2912.5,2911.9,0.00514809]
[1763575556788,0.56108367,2912.5,2911.9,3.21294809]
[1763575558391,3.2078,2912.4,2911.9,5.04870992]
[1763575558587,3.2078,2912.4,2911.9,3.21294809]
[1763575558892,3.2078,2912.2,2911.9,0.00514809]
[1763575559290,0.00439367,2912.5,2912.0,1.4416]
[1763575559485,0.00439367,2912.5,2912.3,3.2078]
[1763575560195,3.21219367,2912.5,2912.0,3.27736183]
[1763575560397,3.21219367,2912.5,2911.9,0.00514809]
[1763575561104,0.00439367,2912.5,2911.9,1.84090992]
[1763575561595,0.55671,2912.4,2911.9,1.84090992]
[1763575561799,3.2078,2912.3,2911.9,0.00514809]
[1763575562600,0.00439367,2912.5,2911.9,0.00514809]
[1763575563100,0.00439367,2912.5,2912.0,1.463]
[1763575563306,3.2078,2913.3,2912.4,1.83576183]
[1763575563498,3.2078,2913.3,2912.7,3.2078]
[1763575563800,0.55656,2913.2,2912.4,5.04356183]
[1763575564192,0.55897411,2913.2,2912.4,3.21209625]
[1763575564397,0.55897411,2913.2,2912.4,5.04785808]
[1763575564703,0.55659,2913.0,2912.4,5.04785808]
[1763575564896,0.55659,2913.0,2912.4,3.21209625]
[1763575565292,2.36358792,2912.8,2912.5,1.83576183]
[1763575565497,3.2078,2914.2,2912.9,0.5566]
[1763575565693,3.2078,2914.6,2913.9,1.83576183]
[1763575566006,1.22206279,2916.1,2913.7,0.55645]
[1763575566007,3.2078,2914.8,2914.0,1.84090992]
[1763575566201,3.2078,2914.1,2914.0,0.00514809]
[1763575566394,3.2078,2914.4,2914.0,0.00514809]
[1763575566597,0.00357594,2914.1,2914.0,0.00514809]
[1763575567303,3.2078,2915.1,2914.0,0.00514809]
[1763575567496,3.2078,2915.1,2914.4,3.2078]
[1763575568007,15.56462,2915.8,2915.0,3.2078]
[1763575568202,12.35922544,2915.8,2915.3,3.2078]
[1763575568902,1.4045,2916.8,2915.7,6.93602606]
[1763575568903,3.2078,2916.8,2915.7,6.93602606]
[1763575569093,3.2078,2917.1,2916.5,3.2078]
[1763575569692,3.2078,2917.4,2916.5,3.2078]
[1763575569899,3.21091033,2917.4,2916.8,3.2078]
[1763575570399,0.00311033,2917.4,2917.1,3.2078]
[1763575570609,0.00311033,2917.4,2917.1,0.0042205]
[1763575571100,0.00311033,2917.4,2917.1,3.2120205]
[1763575571801,3.2078,2917.3,2917.1,0.0042205]
[1763575572104,0.55594,2916.4,2916.0,0.00514809]
[1763575572302,3.2078,2916.1,2916.0,0.00514809]
[1763575572496,1.4045,2916.0,2915.2,3.2078]
[1763575572696,1.4045,2916.0,2914.9,3.2078]
[1763575572697,1.4045,2915.1,2914.9,3.2078]
[1763575572902,1.40850903,2915.1,2913.9,3.2078]
[1763575573103,3.2078,2914.6,2913.9,3.2078]
[1763575573404,0.00514809,2914.5,2914.0,0.00514809]
[1763575573604,1.4045,2914.2,2914.0,0.00514809]
[1763575573994,0.00514809,2914.5,2914.0,0.00843909]
[1763575574204,0.00514809,2914.5,2914.2,3.2078]
[1763575575702,0.00514809,2914.5,2914.0,0.00843909]
[1763575576294,0.00514809,2914.5,2914.2,3.2078]
[1763575576498,0.00514809,2914.5,2914.0,2.87043909]
[1763575576697,0.00514809,2914.5,2914.2,3.2078]
[1763575577716,1.4045,2914.2,2914.0,0.00843909]
[1763575578406,0.00514809,2914.5,2914.0,0.00843909]
[1763575578613,0.00514809,2914.5,2914.4,3.2078]
[1763575580603,0.00400903,2915.1,2914.4,12.93602606]
[1763575580908,0.00400903,2915.1,2915.0,3.2078]
[1763575583604,0.00400903,2915.1,2912.7,5.9802868]
[1763575583605,1.40850903,2915.1,2914.7,3.2078]
[1763575583801,0.5562,2915.0,2914.4,3.2078]
[1763575584002,0.55626,2914.7,2914.1,3.2078]
[1763575585304,4.61630903,2915.1,2914.4,3.2078]
[1763575586307,4.61630903,2915.1,2915.0,3.2078]
[1763575586308,0.00400903,2915.1,2915.0,3.2078]
[1763575587409,3.2078,2916.3,2915.3,0.55614]
[1763575587713,3.2078,2916.3,2915.6,6.29109096]
[1763575587911,3.2078,2917.1,2916.1,3.2078]
[1763575588211,3.2078,2917.4,2916.8,3.2078]
[1763575588419,0.00386692,2916.9,2916.8,3.21026005]
[1763575588914,3.2078,2919.4,2917.8,0.55566]
[1763575589112,12.33814,2920.3,2918.4,4.29983674]
[1763575589303,12.33814,2920.3,2919.0,3.08329096]
[1763575589504,12.33814,2920.3,2919.1,0.00513909]
[1763575589704,1.4625,2919.6,2919.1,0.0082725]
[1763575589910,3.2078,2919.2,2919.1,0.0082725]
[1763575590511,1.4625,2918.7,2917.8,3.2078]
[1763575590711,3.2078,2918.6,2917.8,3.2078]
[1763575591608,0.00510911,2918.5,2917.9,0.00513909]
[1763575592008,3.2078,2918.2,2917.5,3.2078]
[1763575592211,4.711,2917.8,2917.1,3.2078]
[1763575592512,0.00510911,2918.5,2917.5,3.2078]
[1763575592819,0.00510911,2918.5,2918.1,3.2078]
[1763575593006,0.55557,2918.4,2918.1,0.00404631]
[1763575593208,0.00510911,2918.5,2916.9,3.2078]
[1763575593209,0.55562,2918.1,2916.9,3.2078]
[1763575593420,3.2078,2917.8,2916.8,3.2078]
[1763575593620,3.2078,2917.2,2916.5,3.2078]
[1763575593813,3.2078,2916.9,2916.2,9.72009096]
[1763575594011,3.2078,2916.9,2916.2,3.2078]
[1763575594209,0.00513909,2916.8,2916.3,0.00513909]
[1763575594918,3.2078,2916.5,2916.3,0.00513909]
[1763575595315,9.2078,2916.5,2916.3,0.00513909]
[1763575595513,0.55609,2915.6,2915.2,12.35909]
[1763575595715,3.2078,2915.3,2915.2,11.15531243]
[1763575595913,3.2078,2915.3,2914.1,3.2078]
[1763575596222,3.2078,2914.8,2914.1,3.2078]
[1763575596415,0.00513909,2914.7,2914.2,0.00513909]
[1763575596620,0.00513909,2914.7,2914.2,1.46623909]
[1763575596918,0.00513909,2914.7,2914.2,0.00513909]
[1763575597116,3.2078,2914.4,2914.2,0.00513909]
[1763575597320,3.21293909,2914.7,2914.2,0.00513909]
[1763575597619,3.2078,2914.4,2914.1,0.0035309]
[1763575597920,3.2078,2914.4,2910.6,12.88395539]
[1763575597921,6.29109096,2914.4,2912.8,15.57708]
[1763575598126,3.2078,2913.7,2912.8,15.57708]
[1763575598620,3.2078,2913.7,2913.0,0.005148]
[1763575598816,3.08329096,2914.4,2913.0,0.005148]
[1763575598817,3.2078,2913.4,2913.0,0.00886778]
[1763575599017,3.2078,2913.4,2912.8,12.36928]
[1763575599018,3.2078,2913.1,2912.8,12.36928]
[1763575599916,3.2078,2913.1,2912.8,12.37292812]
[1763575600717,3.2078,2913.1,2912.8,12.09997174]
[1763575601118,0.5566,2912.9,2912.8,12.09997174]
[1763575601423,0.5566,2912.9,2911.0,1.21654578]
[1763575601424,0.5566,2912.9,2911.7,3.2078]
[1763575601621,3.2078,2912.4,2911.4,3.2078]
[1763575601818,3.2078,2912.1,2911.4,3.2078]
[1763575602224,3.2078,2911.8,2911.4,0.00417657]
[1763575602924,3.2078,2911.5,2911.4,0.00417657]
[1763575604334,0.005148,2911.7,2911.4,0.00417657]
[1763575604732,0.005148,2911.7,2911.5,1.4611]
[1763575604932,0.005148,2911.7,2911.4,0.00417657]
[1763575605135,3.2078,2911.5,2911.4,0.00417657]
[1763575605331,0.005148,2911.7,2911.4,0.00417657]
[1763575606240,0.005148,2911.7,2911.5,1.4611]
[1763575606541,3.2078,2911.9,2911.5,1.4611]
[1763575606733,3.2078,2911.6,2911.4,0.00417657]
[1763575606935,3.2078,2911.9,2911.4,0.00417657]
[1763575607130,3.2078,2911.9,2911.5,1.4611]
[1763575607441,3.2078,2911.8,2911.5,1.4611]
[1763575607741,3.2078,2911.8,2911.4,0.00932456]
[1763575607943,3.2078,2911.5,2911.4,0.00932456]
[1763575608137,3.2078,2911.8,2911.4,0.00932456]
[1763575608736,3.2078,2911.7,2911.4,0.00932456]
[1763575609141,3.2078,2911.8,2911.4,0.00932456]
[1763575609732,3.2078,2911.5,2911.4,0.00932456]
[1763575609938,3.76467,2911.5,2911.4,0.00932456]
[1763575610140,0.55689,2911.4,2910.5,12.37917]
[1763575610443,3.2078,2911.1,2910.5,12.37917]
[1763575611140,3.2078,2911.1,2910.5,12.38333028]
[1763575611837,3.76481,2910.8,2910.5,12.38333028]
[1763575612044,3.2078,2910.9,2910.5,12.38333028]
[1763575612243,3.2078,2913.4,2911.5,1.4611]
[1763575612440,0.55661,2912.9,2912.1,3.2078]
[1763575612642,3.2078,2912.9,2912.1,3.2078]
[1763575612843,3.2078,2912.6,2912.1,3.2078]
[1763575613045,3.76447,2912.6,2911.7,3.2078]
[1763575613243,0.55672,2912.3,2911.4,3.2078]
[1763575613443,1.508348,2912.4,2911.9,0.005148]
[1763575613639,0.5568,2911.9,2911.0,3.2078]
[1763575613841,1.5032,2911.5,2911.0,3.2078]
[1763575615151,1.5032,2911.5,2910.7,3.2078]
[1763575615152,3.2078,2911.3,2910.7,3.2078]
[1763575615339,3.2078,2911.3,2910.4,3.2078]
[1763575615742,0.55697,2911.0,2910.4,3.2078]
[1763575616645,3.2078,2910.6,2910.1,3.2078]
[1763575616847,3.2078,2910.6,2910.5,0.00416028]
[1763575616848,0.55704,2910.6,2910.5,0.00416028]
[1763575617047,3.76484,2910.6,2909.5,3.2078]
[1763575617238,3.76484,2910.6,2909.8,3.2078]
[1763575617443,3.76489,2910.4,2909.8,3.2078]
[1763575617655,0.55709,2910.4,2909.8,3.2078]
[1763575617849,3.2078,2910.6,2910.1,3.2078]
[1763575618045,3.2078,2910.3,2910.1,0.00418825]
[1763575618245,3.2078,2910.3,2909.4,3.2078]
[1763575618550,0.55725,2909.5,2909.3,15.59187]
[1763575618951,3.2078,2910.5,2909.3,15.59187]
[1763575619154,0.00254095,2910.6,2910.1,3.2078]
[1763575620246,0.00254095,2910.6,2910.5,3.2078]
[1763575620750,0.00254095,2910.6,2909.9,3.2078]
[1763575620951,0.00254095,2910.6,2909.7,1.4611]
[1763575620952,3.76489,2910.4,2909.7,1.4611]
[1763575621148,3.2078,2910.1,2909.3,15.59444403]
[1763575621347,0.55724,2909.6,2909.3,12.38664403]
[1763575622354,3.2078,2909.8,2909.3,12.38664403]
[1763575622743,0.55727,2909.4,2909.3,12.38664403]
[1763575623146,3.2078,2910.4,2909.3,18.38664403]
[1763575623348,0.00254095,2910.6,2910.2,3.2078]
[1763575624550,3.76491,2910.3,2909.7,1.474]
[1763575624750,0.55714,2910.1,2909.5,3.2078]
[1763575624951,0.55714,2910.1,2909.3,12.38664403]
[1763575624952,0.55727,2909.4,2909.3,9.99590943]
[1763575625355,6.55727,2909.4,2909.3,9.99590943]
[1763575625756,0.55727,2909.4,2909.3,9.99590943]
[1763575626152,3.2078,2910.1,2909.7,1.474]
[1763575626454,0.00254095,2910.6,2909.3,9.99590943]
[1763575626455,3.2078,2910.3,2909.3,9.99590943]
[1763575626653,3.76505,2909.6,2909.3,9.99590943]
[1763575626852,0.55727,2909.4,2909.3,9.99590943]
[1763575627857,3.76487,2910.5,2909.3,9.99590943]
[1763575628053,0.00254095,2910.6,2909.3,9.99590943]
[1763575628054,3.2078,2909.4,2909.3,9.99590943]
[1763575628358,0.55724,2909.6,2909.3,9.99590943]
[1763575628560,3.2078,2909.7,2909.3,9.99590943]
[1763575629053,3.2078,2909.5,2909.3,9.99590943]
[1763575629452,0.55727,2909.4,2909.3,9.99590943]
[1763575629851,3.2078,2909.9,2909.3,9.99590943]
[1763575630060,3.2078,2909.9,2909.7,1.474]
[1763575630356,3.2078,2909.9,2909.3,9.99590943]
[1763575630357,0.55727,2909.4,2909.3,9.99590943]
[1763575631061,3.2078,2910.2,2909.7,1.474]
[1763575631254,3.21034095,2910.6,2909.8,3.2078]
[1763575631462,3.2078,2910.1,2909.7,1.474]
[1763575631663,0.55716,2910.0,2909.7,1.474]
[1763575632364,0.55726,2909.5,2909.3,9.99590943]
[1763575632556,3.76507,2909.4,2909.3,9.99590943]
[1763575632762,0.55727,2909.4,2909.3,9.99590943]
[1763575634456,3.76507,2909.4,2909.3,9.99590943]
[1763575636352,0.55745,2908.5,2907.9,1.1595]
[1763575636657,3.76525,2908.5,2907.9,1.1595]
[1763575636864,0.55745,2908.5,2908.0,3.2078]
[1763575637065,0.55745,2908.5,2908.4,12.39064403]
[1763575637559,0.56138454,2908.5,2908.4,12.39350363]
[1763575637761,3.2078,2908.9,2908.4,21.60130363]
[1763575637963,3.2078,2909.7,2908.7,3.2078]
[1763575638265,0.55736,2909.0,2908.7,3.21037403]
[1763575638468,3.2078,2909.7,2908.8,1.474]
[1763575638659,0.55716,2910.0,2909.3,3.2078]
[1763575638856,0.00515739,2909.9,2909.6,3.2078]
[1763575639062,0.00515739,2909.9,2909.5,3.2078]
[1763575639366,0.00515739,2909.9,2909.7,1.47657403]
[1763575639566,0.00515739,2909.9,2909.7,1.474]
[1763575639760,0.00515739,2909.9,2909.7,1.47657403]
[1763575640356,0.00515739,2909.9,2909.6,0.00257403]
[1763575640663,0.55721,2909.8,2909.4,0.00515739]
[1763575640861,0.00515739,2909.9,2909.4,0.00515739]
[1763575641165,0.00515739,2909.9,2909.4,0.00773142]
[1763575641366,3.2078,2909.7,2909.4,0.00515739]
[1763575641866,0.55731,2909.2,2908.8,3.2078]
[1763575642067,3.2078,2908.9,2908.8,0.00257403]
[1763575642363,3.2078,2908.9,2908.4,12.3909296]
[1763575642364,0.55742,2908.7,2908.4,15.5987296]
[1763575642963,3.2078,2909.5,2908.4,15.60130363]
[1763575643265,0.55728,2909.4,2908.8,4.6818]
[1763575643759,3.2078,2909.8,2908.8,4.68437403]
[1763575643965,0.55724,2909.6,2909.1,3.2078]
[1763575644469,0.55724,2909.6,2908.8,1.474]
[1763575644470,0.55737,2908.9,2908.5,3.2078]
[1763575644662,0.55741,2908.8,2908.5,3.2078]
[1763575645067,0.55742,2908.7,2908.5,0.00257403]
[1763575645262,0.55743,2908.6,2908.5,0.00257403]
[1763575645657,1.22206279,2909.6,2908.4,12.3909296]
[1763575645658,0.55745,2908.5,2908.4,12.3909296]
[1763575645862,0.55745,2908.5,2908.4,12.39350363]
[1763575648656,0.55745,2908.5,2908.4,12.3909296]
[1763575648863,0.55745,2908.5,2908.4,9.20284971]
[1763575649064,0.55745,2908.5,2908.4,9.20542374]
[1763575649263,6.55745,2908.5,2908.4,9.20284971]
[1763575650164,6.55745,2908.5,2908.4,9.20542374]
[1763575650463,7.47180805,2908.5,2908.4,9.20284971]
[1763575651057,7.47180805,2908.5,2908.4,9.20542374]
[1763575651263,6.55745,2908.5,2908.4,9.20542374]
[1763575651460,10.43817217,2908.5,2906.7,1.21654578]
[1763575651766,10.43817217,2908.5,2906.4,12.39635]
[1763575651767,0.55783,2906.5,2906.4,12.39635]
[1763575652070,3.76563,2906.5,2906.4,15.83395]
[1763575652276,0.55783,2906.5,2906.4,15.83395]
[1763575652468,0.00393904,2906.5,2906.4,17.33346953]
[1763575652668,0.00393904,2906.5,2906.4,17.10366953]
[1763575652868,3.21173904,2906.5,2906.4,15.83816953]
[1763575653168,0.00393904,2906.5,2906.4,15.83816953]
[1763575653567,0.56176904,2906.5,2906.4,15.83816953]
[1763575654174,0.00393904,2906.5,2906.4,15.83816953]
[1763575654670,6.56176904,2906.5,2906.4,14.26330886]
[1763575655062,6.56176904,2906.5,2906.4,9.27564703]
[1763575655268,0.56176904,2906.5,2906.4,9.27564703]
[1763575655769,0.56176904,2906.5,2906.4,12.71324703]
[1763575656471,0.56176904,2906.5,2906.4,9.27564703]
[1763575657070,0.56176904,2906.5,2906.4,12.71324703]
[1763575657268,0.56176904,2906.5,2906.4,14.20854703]
[1763575657471,0.91807639,2907.9,2906.4,20.20854703]
[1763575657472,3.76546,2907.4,2906.4,20.20854703]
[1763575657675,3.2078,2907.0,2906.4,14.20854703]
[1763575657873,3.76563,2906.5,2906.4,12.71324703]
[1763575658381,3.76906025,2906.5,2906.4,9.27564703]
[1763575658569,0.00343025,2906.5,2906.4,10.77094703]
[1763575659068,0.00343025,2906.5,2906.4,12.71324703]
[1763575659276,0.00343025,2906.5,2904.3,1.21654578]
[1763575659277,0.55816,2904.8,2904.3,1.21654578]
[1763575659470,0.55816,2904.8,2904.1,15.61402]
[1763575659662,0.00515739,2904.8,2904.1,12.40622]
[1763575659868,0.55822,2904.5,2904.2,3.2078]
[1763575660268,0.55822,2904.5,2904.2,3.21051819]
[1763575660773,0.55825,2904.3,2904.2,0.00271819]
[1763575661076,0.00276791,2904.3,2904.2,0.00271819]
[1763575661476,3.76881791,2904.3,2904.2,0.00271819]
[1763575663181,0.56101791,2904.3,2904.2,0.00271819]
[1763575663875,0.00276791,2904.3,2904.2,0.00271819]
[1763575664877,3.76881791,2904.3,2904.2,0.00271819]
[1763575665078,0.56101791,2904.3,2904.2,0.00271819]
[1763575665975,0.00276791,2904.3,2904.2,3.21051819]
[1763575666279,0.00276791,2904.3,2904.2,0.00271819]
[1763575666674,0.55824,2904.4,2904.2,6.00271819]
[1763575666880,0.55824,2904.4,2904.2,0.00271819]
[1763575667284,0.00515739,2904.8,2904.2,3.21051819]
[1763575667774,3.2078,2905.8,2904.8,1.4953]
[1763575668079,3.2078,2906.1,2905.6,1.4953]
[1763575668479,3.2078,2906.4,2905.8,3.2078]
[1763575668884,3.2078,2906.1,2905.8,0.00515739]
[1763575669280,0.00924016,2906.4,2905.8,3.21295739]
[1763575669780,0.00924016,2906.4,2906.1,3.2078]
[1763575669982,3.2078,2906.8,2906.1,3.2078]
[1763575670188,3.2078,2907.1,2906.2,3.2078]
[1763575670580,3.2078,2907.1,2906.5,3.2078]
[1763575670882,3.2078,2907.1,2906.5,3.21047015]
[1763575671184,0.00928158,2907.1,2907.0,1.4953]
[1763575671388,0.55761,2907.7,2907.0,1.4953]
[1763575671687,3.2078,2907.6,2906.7,3.2078]
[1763575671983,3.2078,2907.6,2906.6,3.2078]
[1763575671984,0.55775,2907.0,2906.6,3.2078]
[1763575672281,0.56197761,2907.0,2906.6,3.2078]
[1763575673481,0.00515739,2907.1,2906.6,3.2078]
[1763575673781,3.2078,2907.8,2906.9,3.2078]
[1763575673984,0.55762,2907.6,2906.9,3.2078]
[1763575674187,0.55762,2907.6,2907.2,4.7031]
[1763575674383,0.56098523,2907.6,2907.2,4.7031]
[1763575674574,0.56098523,2907.6,2907.2,1.4953]
[1763575674884,0.56098523,2907.6,2907.3,3.2078]
[1763575675676,0.00515739,2907.7,2907.3,3.2078]
[1763575675872,3.2078,2907.9,2907.2,1.4953]
[1763575676073,3.2078,2907.9,2907.2,4.7031]
[1763575676477,0.55759,2907.8,2907.2,4.7031]
[1763575676676,0.5576,2907.7,2907.2,4.7031]
[1763575676876,0.55764,2907.5,2907.2,1.4953]
[1763575678076,0.00515739,2907.7,2907.4,3.2078]
[1763575678275,0.55749,2908.3,2908.0,1.4953]
[1763575678682,15.59605,2908.4,2907.6,3.2078]
[1763575678881,15.59605,2908.4,2907.2,4.7031]
[1763575678882,3.2078,2908.1,2907.2,4.7031]
[1763575679085,0.5576,2907.7,2907.2,4.7031]
[1763575679294,0.56347007,2907.7,2907.2,4.7031]
[1763575679984,0.56347007,2907.7,2907.5,3.2078]
[1763575680383,3.2078,2908.1,2907.5,3.2078]
[1763575680583,3.2078,2908.1,2908.0,1.4953]
[1763575681192,0.55749,2908.3,2908.0,1.4953]
[1763575681484,15.59605,2908.4,2908.2,3.2078]
[1763575681485,12.38825,2908.4,2908.2,3.2078]
[1763575681686,2.38131715,2908.7,2908.2,3.2078]
[1763575681888,0.55736,2909.0,2908.5,3.2078]
[1763575682391,0.003739,2909.0,2908.5,3.2078]
[1763575682587,0.003739,2909.0,2908.0,1.50045739]
[1763575682588,0.5574,2908.8,2908.2,3.2078]
[1763575682989,0.003739,2909.0,2908.0,0.00515739]
[1763575682990,0.55749,2908.3,2908.0,0.00515739]
[1763575683390,0.55752,2908.1,2908.0,0.00515739]
[1763575683591,3.73647773,2908.2,2907.2,4.7031]
[1763575683898,0.55747,2908.4,2908.1,3.2078]
[1763575684203,3.2078,2908.9,2908.1,3.2078]
[1763575684381,0.561099,2909.0,2908.1,3.2078]
[1763575684587,0.561099,2909.0,2908.6,3.2078]
[1763575684787,0.00515739,2908.8,2908.6,3.21120994]
[1763575684991,2.94113185,2910.4,2908.8,1.4473]
[1763575684992,3.08664081,2909.6,2908.8,1.4473]
[1763575685193,0.55719,2909.9,2908.8,1.4473]
[1763575685194,3.76499,2909.9,2909.2,3.2078]
[1763575686092,3.21087847,2909.9,2908.8,1.4473]
[1763575686291,0.55726,2909.5,2909.0,3.2078]
[1763575686497,0.55705,2910.6,2909.4,3.2078]
[1763575686702,3.76486,2910.5,2909.8,3.2078]
[1763575686891,0.55706,2910.5,2909.8,3.2078]
[1763575687089,3.76486,2910.5,2909.8,3.2078]
[1763575687292,0.55706,2910.5,2909.8,3.2078]
[1763575687492,0.5572,2909.8,2909.7,0.00515739]
[1763575687691,1.4394,2910.4,2908.8,1.4473]
[1763575687692,0.55724,2909.6,2908.8,4.6551]
[1763575687902,3.2078,2909.5,2908.8,4.6551]
[1763575688191,0.55713,2910.2,2909.4,3.2078]
[1763575688391,3.2078,2910.4,2909.3,3.2078]
[1763575688392,0.55714,2910.1,2909.3,3.2078]
[1763575688597,0.00289208,2910.5,2909.9,3.2078]
[1763575688793,0.00804947,2910.5,2909.9,0.00515739]
[1763575688995,0.00804947,2910.5,2909.9,3.21295739]
[1763575689197,0.00804947,2910.5,2910.4,3.2078]
[1763575689400,3.76471,2911.4,2910.4,4.1379]
[1763575689597,0.55691,2911.3,2910.4,3.2078]
[1763575690098,0.55691,2911.3,2910.7,3.2078]
[1763575690300,0.56103178,2911.3,2910.7,3.21064043]
[1763575690988,3.2078,2910.9,2910.7,0.00284043]
[1763575691191,0.55701,2910.8,2910.7,0.00284043]
[1763575691592,6.0,2910.8,2909.9,0.00515739]
[1763575691801,0.55709,2910.4,2909.9,0.00515739]
[1763575692100,0.55709,2910.4,2910.0,3.2078]
[1763575692293,3.2078,2911.0,2910.3,3.2078]
[1763575692896,0.00412178,2911.3,2910.7,3.2078]
[1763575693699,1.4394,2911.2,2910.7,3.2078]
[1763575693897,3.2078,2910.9,2910.3,0.00420013]
[1763575694095,5.17587773,2911.2,2909.9,0.00515739]
[1763575694096,0.55714,2910.1,2909.9,0.00515739]
[1763575694698,3.2078,2910.9,2909.9,3.21295739]
[1763575694900,3.2078,2910.6,2909.9,3.21295739]
[1763575695291,3.2078,2911.4,2910.4,3.2078]
[1763575695493,3.2078,2911.4,2910.8,3.2078]
[1763575696398,0.56103178,2911.3,2910.8,3.2078]
[1763575696607,0.55702,2910.8,2910.3,3.2078]
[1763575696997,0.55702,2910.8,2910.6,3.2078]
[1763575697192,0.00412178,2911.3,2910.6,3.2078]
[1763575697402,0.55675,2912.2,2911.2,3.2078]
[1763575697605,3.2078,2911.8,2911.4,0.00515739]
[1763575697809,0.55681,2911.9,2911.4,3.21295739]
[1763575698315,3.76802542,2911.9,2911.4,3.21295739]